[Event "29th Czech Open-Rapid 2018"]
[Site "Pardubice"]
[Date "2018.07.19"]
[Round "6"]
[White "Zdechovsky, Tobias"]
[Black "Yakimenko, Alexander A"]
[Result "1-0"]
[ECO "C71"]
[WhiteElo "1675"]
[BlackElo "2037"]
[Annotator "NA"]
[PlyCount "64"]
[EventDate "2018.07.18"]
[EventType "swiss"]
[EventCountry "CZE"]
[SourceTitle "playchess.com"]
[Source "ChessBase"]
[SourceQuality "1"]
[TimeControl "900+10"]

1. e4 {[%emt 0:00:00]} e5 {[%emt 0:00:00]} 2. Nf3 {[%emt 0:00:00]} Nc6 {[%emt 0:00:13]} 3. Bb5 {[%emt 0:00:00]} a6 {[%emt 0:00:02]} 4. Ba4 {[%emt 0:00:00]} d6 {[%emt 0:00:03]} 5. d4 {[%emt 0:00:10]} Bd7 {[%emt 0:00:04]} 6. O-O {[%emt 0:00:52]} Nf6 {[%emt 0:00:46]} 7. Re1 {[%emt 0:00:44]} Be7 {[%emt 0:00:18]} 8. c4 {[%emt 0:01:17]} O-O {[%emt 0:00:36]} 9. h3 {[%emt 0:00:03]} Nxd4 {[%emt 0:00:25]} 10. Nxd4 {[%emt 0:00:32]} Bxa4 {[%emt 0:00:08]} 11. Qxa4 {[%emt 0:00:01]} exd4 {[%emt 0:00:03]} 12. b4 {[%emt 0:01:37]} Nd7 {[%emt 0:00:23]} 13. Qb3 {[%emt 0:01:54]} Bf6 {[%emt 0:00:27]} 14. Bb2 {[%emt 0:00:33]} Re8 {[%emt 0:00:42]} 15. Nd2 {[%emt 0:01:20]} c5 {[%emt 0:00:07]} 16. Qg3 {[%emt 0:00:33]} Qc7 {[%emt 0:02:13]} 17. bxc5 {[%emt 0:00:39]} Nxc5 {[%emt 0:00:12]} 18. Rac1 {[%emt 0:00:38]} Na4 {[%emt 0:01:19]} 19. Ba3 {[%emt 0:00:53]} Nc5 {[%emt 0:00:40]} 20. Bb2 {[%emt 0:04:20]} Re7 {[%emt 0:00:41]} 21. f4 {[%emt 0:00:54]} Rae8 {[%emt 0:00:17]} 22. Qf3 {[%emt 0:00:02]} g6 {[%emt 0:00:32]} 23. Nb3 {[%emt 0:00:52]} Nxb3 {[%emt 0:01:54]} 24. axb3 {[%emt 0:00:10]} Qc6 {[%emt 0:00:19]} 25. Ba3 {[%emt 0:00:44]} Rxe4 {[%emt 0:00:24]} 26. Rxe4 {[%emt 0:00:05]} Qxe4 {[%emt 0:00:03]} 27. Qxe4 {[%emt 0:00:06]} Rxe4 {[%emt 0:00:02]} 28. Bxd6 {[%emt 0:00:02]} Re3 {[%emt 0:00:39]} 29. b4 {[%emt 0:00:11]} h5 {[%emt 0:01:07]} 30. c5 {[%emt 0:00:31]} d3 {[%emt 0:00:23]} 31. Kf1 {[%emt 0:00:15]} d2 {[%emt 0:00:25]} 32. Rd1 {[%emt 0:00:02]} Bc3 {[%emt 0:00:02]} 1-0

[Event "29th Czech Open-Rapid 2018"]
[Site "Pardubice"]
[Date "2018.07.19"]
[Round "6"]
[White "Gukesh, Dommaraju"]
[Black "Maltsevskyay, Aleksandra"]
[Result "1-0"]
[ECO "A05"]
[WhiteElo "1519"]
[BlackElo "2297"]
[Annotator "NA"]
[PlyCount "91"]
[EventDate "2018.07.18"]
[EventType "swiss"]
[EventCountry "CZE"]
[SourceTitle "playchess.com"]
[Source "ChessBase"]
[SourceQuality "1"]
[TimeControl "900+10"]

1. Nf3 {[%emt 0:00:00]} Nf6 {[%emt 0:00:00]} 2. g3 {[%emt 0:00:00]} g6 {[%emt 0:00:00]} 3. Bg2 {[%emt 0:00:00]} Bg7 {[%emt 0:00:01]} 4. O-O {[%emt 0:00:02]} O-O {[%emt 0:00:02]} 5. d4 {[%emt 0:00:01]} d6 {[%emt 0:00:05]} 6. Re1 {[%emt 0:00:02]} Nbd7 {[%emt 0:00:13]} 7. e4 {[%emt 0:00:02]} e5 {[%emt 0:00:01]} 8. Nc3 {[%emt 0:00:02]} c6 {[%emt 0:00:46]} 9. a4 {[%emt 0:00:03]} Qc7 {[%emt 0:00:34]} 10. h3 {[%emt 0:00:09]} b6 {[%emt 0:00:10]} 11. b3 {[%emt 0:00:03]} Bb7 {[%emt 0:00:20]} 12. Ba3 {[%emt 0:00:02]} Rfe8 {[%emt 0:00:08]} 13. Qd2 {[%emt 0:01:23]} Rad8 {[%emt 0:00:32]} 14. Rad1 {[%emt 0:00:02]} a6 {[%emt 0:00:49]} 15. Qc1 {[%emt 0:01:48]} exd4 {[%emt 0:05:29]} 16. Nxd4 {[%emt 0:00:02]} c5 {[%emt 0:00:01]} 17. Ndb5 {[%emt 0:00:01]} axb5 {[%emt 0:00:02]} 18. Nxb5 {[%emt 0:00:02]} Qb8 {[%emt 0:00:02]} 19. Nxd6 {[%emt 0:00:02]} Bc6 {[%emt 0:00:57]} 20. Nxe8 {[%emt 0:00:13]} Rxe8 {[%emt 0:00:03]} 21. e5 {[%emt 0:02:30]} Bxg2 {[%emt 0:05:51]} 22. exf6 {[%emt 0:00:12]} Bxh3 {[%emt 0:00:02]} 23. Kh2 {[%emt 0:00:57]} Ne5 {[%emt 0:00:33]} 24. fxg7 {[%emt 0:04:30]} Bg4 {[%emt 0:00:02]} 25. Re3 {[%emt 0:00:17]} Nf3+ {[%emt 0:01:29]} 26. Kg2 {[%emt 0:00:25]} Rxe3 {[%emt 0:00:08]} 27. fxe3 {[%emt 0:04:00]} Qa8 {[%emt 0:00:01]} 28. e4 {[%emt 0:00:47]} Qxe4 {[%emt 0:00:13]} 29. Rd8+ {[%emt 0:00:32]} Kxg7 {[%emt 0:00:02]} 30. Bb2+ {[%emt 0:00:06]} Nd4+ {[%emt 0:00:43]} 31. Kg1 {[%emt 0:00:05]} Qe5 {[%emt 0:00:36]} 32. Bxd4 {[%emt 0:01:03]} cxd4 {[%emt 0:00:01]} 33. Qf4 {[%emt 0:00:08]} Qe1+ {[%emt 0:00:11]} 34. Kg2 {[%emt 0:00:01]} Qe2+ {[%emt 0:00:20]} 35. Qf2 {[%emt 0:00:05]} Bh3+ {[%emt 0:00:09]} 36. Kg1 {[%emt 0:00:07]} Qe6 {[%emt 0:00:11]} 37. Qxd4+ {[%emt 0:00:04]} f6 {[%emt 0:00:00]} 38. Qf2 {[%emt 0:00:44]} Bf5 {[%emt 0:00:16]} 39. Rb8 {[%emt 0:00:06]} Be4 {[%emt 0:00:15]} 40. Rxb6 {[%emt 0:00:06]} Qe5 {[%emt 0:00:01]} 41. Rb4 {[%emt 0:00:29]} Bd5 {[%emt 0:00:10]} 42. Rd4 {[%emt 0:00:14]} Qh5 {[%emt 0:00:05]} 43. Kf1 {[%emt 0:00:17]} Qe5 {[%emt 0:00:16]} 44. Qf4 {[%emt 0:00:07]} Qe6 {[%emt 0:00:06]} 45. Qc7+ {[%emt 0:00:02]} Kh6 {[%emt 0:00:03]} 46. Rh4+ {[%emt 0:00:01]} 1-0

[Event "29th Czech Open-Rapid 2018"]
[Site "Pardubice"]
[Date "2018.07.19"]
[Round "7"]
[White "Gallego Alcaraz, Andres Felipe"]
[Black "Nikologorsky, Matfei"]
[Result "1-0"]
[ECO "D85"]
[WhiteElo "2447"]
[BlackElo "2140"]
[Annotator "NA"]
[PlyCount "75"]
[EventDate "2018.07.18"]
[EventType "swiss"]
[EventCountry "CZE"]
[SourceTitle "playchess.com"]
[Source "ChessBase"]
[SourceQuality "1"]
[TimeControl "900+10"]

1. d4 {[%emt 0:00:00]} Nf6 {[%emt 0:00:00]} 2. c4 {[%emt 0:00:00]} g6 {[%emt 0:00:00]} 3. Nc3 {[%emt 0:00:00]} d5 {[%emt 0:00:00]} 4. Nf3 {[%emt 0:00:02]} Bg7 {[%emt 0:00:00]} 5. cxd5 {[%emt 0:00:02]} Nxd5 {[%emt 0:00:00]} 6. e4 {[%emt 0:00:02]} Nxc3 {[%emt 0:00:00]} 7. bxc3 {[%emt 0:00:01]} c5 {[%emt 0:00:01]} 8. Rb1 {[%emt 0:00:02]} Nc6 {[%emt 0:00:27]} 9. d5 {[%emt 0:00:22]} Ne5 {[%emt 0:01:31]} 10. Nxe5 {[%emt 0:01:37]} Bxe5 {[%emt 0:00:02]} 11. Bb5+ {[%emt 0:00:01]} Bd7 {[%emt 0:00:01]} 12. O-O {[%emt 0:00:31]} O-O {[%emt 0:00:18]} 13. Bh6 {[%emt 0:00:21]} Bxc3 {[%emt 0:00:14]} 14. Bxf8 {[%emt 0:00:24]} Kxf8 {[%emt 0:00:02]} 15. Bxd7 {[%emt 0:00:19]} Qxd7 {[%emt 0:00:02]} 16. Qb3 {[%emt 0:00:01]} Bd4 {[%emt 0:00:18]} 17. Qxb7 {[%emt 0:00:04]} Qd8 {[%emt 0:00:10]} 18. Rfd1 {[%emt 0:00:26]} Kg7 {[%emt 0:01:21]} 19. g3 {[%emt 0:00:12]} Rc8 {[%emt 0:00:04]} 20. Rd2 {[%emt 0:01:01]} Rc7 {[%emt 0:00:20]} 21. Qa6 {[%emt 0:00:01]} h5 {[%emt 0:00:47]} 22. h4 {[%emt 0:00:16]} Qd7 {[%emt 0:00:16]} 23. Kg2 {[%emt 0:00:12]} f5 {[%emt 0:00:36]} 24. Qe2 {[%emt 0:00:39]} e6 {[%emt 0:00:38]} 25. dxe6 {[%emt 0:00:23]} Qxe6 {[%emt 0:00:02]} 26. exf5 {[%emt 0:00:07]} Qxf5 {[%emt 0:00:01]} 27. Qd3 {[%emt 0:02:04]} Qf6 {[%emt 0:02:15]} 28. Qe4 {[%emt 0:00:28]} Qf7 {[%emt 0:01:29]} 29. Rb8 {[%emt 0:01:16]} Re7 {[%emt 0:00:23]} 30. Qf3 {[%emt 0:00:08]} Qxf3+ {[%emt 0:01:28]} 31. Kxf3 {[%emt 0:00:02]} Rf7+ {[%emt 0:00:01]} 32. Kg2 {[%emt 0:00:01]} Kf6 {[%emt 0:00:15]} 33. Re2 {[%emt 0:00:25]} Rc7 {[%emt 0:00:54]} 34. Rf8+ {[%emt 0:00:36]} Kg7 {[%emt 0:00:02]} 35. Rd8 {[%emt 0:00:47]} Bf6 {[%emt 0:01:36]} 36. Rd6 {[%emt 0:00:07]} Be7 {[%emt 0:00:02]} 37. Ra6 {[%emt 0:00:11]} c4 {[%emt 0:00:01]} 38. Ree6 {[%emt 0:00:10]} 1-0

[Event "29th Czech Open-Rapid 2018"]
[Site "Pardubice"]
[Date "2018.07.19"]
[Round "7"]
[White "Zpevak, Pavel"]
[Black "Claridge Hansen, William"]
[Result "1-0"]
[ECO "E16"]
[WhiteElo "2440"]
[BlackElo "2146"]
[Annotator "NA"]
[PlyCount "75"]
[EventDate "2018.07.18"]
[EventType "swiss"]
[EventCountry "CZE"]
[SourceTitle "playchess.com"]
[Source "ChessBase"]
[SourceQuality "1"]
[TimeControl "900+10"]

1. d4 {[%emt 0:00:00]} Nf6 {[%emt 0:00:00]} 2. c4 {[%emt 0:00:00]} e6 {[%emt 0:00:00]} 3. Nf3 {[%emt 0:00:00]} b6 {[%emt 0:00:00]} 4. g3 {[%emt 0:00:00]} Bb7 {[%emt 0:00:00]} 5. Bg2 {[%emt 0:00:00]} Bb4+ {[%emt 0:00:00]} 6. Bd2 {[%emt 0:00:16]} c5 {[%emt 0:00:02]} 7. O-O {[%emt 0:00:14]} O-O {[%emt 0:00:09]} 8. Bg5 {[%emt 0:00:27]} cxd4 {[%emt 0:00:18]} 9. Qxd4 {[%emt 0:00:03]} h6 {[%emt 0:02:25]} 10. Bxf6 {[%emt 0:00:39]} Qxf6 {[%emt 0:00:02]} 11. Qxf6 {[%emt 0:00:04]} gxf6 {[%emt 0:00:02]} 12. a3 {[%emt 0:00:01]} Be7 {[%emt 0:00:05]} 13. Nc3 {[%emt 0:00:02]} Rd8 {[%emt 0:00:44]} 14. Rfd1 {[%emt 0:00:29]} d6 {[%emt 0:00:23]} 15. Nd4 {[%emt 0:00:26]} Bxg2 {[%emt 0:00:08]} 16. Kxg2 {[%emt 0:00:02]} a6 {[%emt 0:01:18]} 17. Na4 {[%emt 0:00:08]} b5 {[%emt 0:00:03]} 18. cxb5 {[%emt 0:00:19]} axb5 {[%emt 0:00:07]} 19. Nc3 {[%emt 0:00:01]} d5 {[%emt 0:01:22]} 20. Ncxb5 {[%emt 0:00:13]} f5 {[%emt 0:00:21]} 21. Rac1 {[%emt 0:04:12]} Kg7 {[%emt 0:00:13]} 22. Nc7 {[%emt 0:00:27]} Ra7 {[%emt 0:00:44]} 23. Ncxe6+ {[%emt 0:00:13]} fxe6 {[%emt 0:00:02]} 24. Nxe6+ {[%emt 0:00:00]} Kf6 {[%emt 0:00:13]} 25. Nxd8 {[%emt 0:00:10]} Bxd8 {[%emt 0:00:01]} 26. Rxd5 {[%emt 0:00:13]} Be7 {[%emt 0:00:13]} 27. Rc8 {[%emt 0:00:51]} Rb7 {[%emt 0:00:16]} 28. b4 {[%emt 0:00:20]} Ke6 {[%emt 0:00:40]} 29. Ra5 {[%emt 0:00:22]} Bf6 {[%emt 0:01:15]} 30. Ra8 {[%emt 0:00:59]} Nd7 {[%emt 0:00:15]} 31. Rc6+ {[%emt 0:01:06]} Kd5 {[%emt 0:01:13]} 32. Raa6 {[%emt 0:00:46]} Bg7 {[%emt 0:00:06]} 33. Rg6 {[%emt 0:00:43]} Nf8 {[%emt 0:01:19]} 34. Ra5+ {[%emt 0:00:31]} Ke4 {[%emt 0:00:11]} 35. Rd6 {[%emt 0:00:16]} f4 {[%emt 0:00:29]} 36. Rd3 {[%emt 0:00:48]} Be5 {[%emt 0:00:31]} 37. gxf4 {[%emt 0:00:34]} Bc7 {[%emt 0:00:56]} 38. f3+ {[%emt 0:00:22]} 1-0

[Event "29th Czech Open-Rapid 2018"]
[Site "Pardubice"]
[Date "2018.07.19"]
[Round "7"]
[White "Matviishen, Viktor"]
[Black "Buchcar, Tomas"]
[Result "1-0"]
[ECO "B40"]
[WhiteElo "2425"]
[BlackElo "2174"]
[Annotator "NA RC"]
[PlyCount "82"]
[EventDate "2018.07.18"]
[EventType "swiss"]
[EventCountry "CZE"]
[SourceTitle "playchess.com"]
[Source "ChessBase"]
[SourceQuality "1"]
[TimeControl "900+10"]

1. e4 {[%emt 0:00:00]} c5 {[%emt 0:00:00]} 2. Nf3 {[%emt 0:00:00]} e6 {[%emt 0:00:00]} 3. b3 {[%emt 0:00:00]} b6 {[%emt 0:00:00]} 4. Bb2 {[%emt 0:00:00]} Bb7 {[%emt 0:00:00]} 5. Nc3 {[%emt 0:00:06]} a6 {[%emt 0:00:08]} 6. Qe2 {[%emt 0:00:33]} d6 {[%emt 0:00:07]} 7. g4 {[%emt 0:00:20]} Qc7 {[%emt 0:00:02]} 8. h4 {[%emt 0:00:13]} Nc6 {[%emt 0:00:28]} 9. O-O-O {[%emt 0:00:13]} b5 {[%emt 0:01:08]} 10. d4 {[%emt 0:00:18]} cxd4 {[%emt 0:00:43]} 11. Nxd4 {[%emt 0:00:02]} b4 {[%emt 0:00:11]} 12. Na4 {[%emt 0:00:12]} Nf6 {[%emt 0:00:31]} 13. Bg2 {[%emt 0:01:25]} Rc8 {[%emt 0:01:05]} 14. g5 {[%emt 0:00:17]} Nd7 {[%emt 0:00:06]} 15. h5 {[%emt 0:00:08]} Be7 {[%emt 0:00:42]} 16. g6 {[%emt 0:00:32]} Nxd4 {[%emt 0:00:27]} 17. gxf7+ {[%emt 0:00:11]} Kxf7 {[%emt 0:00:08]} 18. Rxd4 {[%emt 0:00:09]} a5 {[%emt 0:01:37]} 19. f4 {[%emt 0:00:39]} Bf6 {[%emt 0:00:16]} 20. Rc4 {[%emt 0:01:00]} Qb8 {[%emt 0:00:01]} 21. Rxc8 {[%emt 0:00:03]} Rxc8 {[%emt 0:00:02]} 22. Rd1 {[%emt 0:01:24]} Qc7 {[%emt 0:00:11]} 23. Bh3 {[%emt 0:01:02]} Qc6 {[%emt 0:01:36]} 24. e5 {[%emt 0:02:24]} dxe5 {[%emt 0:00:11]} 25. f5 {[%emt 0:00:04]} Nf8 {[%emt 0:00:30]} 26. fxe6+ {[%emt 0:00:49]} Nxe6 {[%emt 0:00:02]} 27. Kb1 {[%emt 0:00:12]} Rc7 {[%emt 0:00:41]} 28. Bf5 {[%emt 0:00:20]} Qf3 {[%emt 0:00:30]} 29. Qxf3 {[%emt 0:00:09]} Bxf3 {[%emt 0:00:02]} 30. Rd6 {[%emt 0:00:03]} Nd4 {[%emt 0:00:27]} 31. Bxh7 {[%emt 0:00:10]} Nb5 {[%emt 0:00:32]} 32. Bg6+ {[%emt 0:00:05]} Ke7 {[%emt 0:00:03]} 33. Rb6 {[%emt 0:01:03]} Nd4 {[%emt 0:01:01]} 34. a3 {[%emt 0:00:12]} Rb7 {[%emt 0:00:34]} 35. Ra6 {[%emt 0:00:19]} Nc6 {[%emt 0:00:09]} 36. Nc5 {[%emt 0:00:14]} Rc7 {[%emt 0:01:10]} 37. Ne4 {[%emt 0:00:30]} Bh4 {[%emt 0:00:01]} 38. Ra8 {[%emt 0:00:27]} Ke6 {[%emt 0:00:46]} 39. Rf8 {[%emt 0:00:32]} Bd1 {[%emt 0:00:13]} 40. Rf1 {[%emt 0:02:10]} Be2 {[%emt 0:00:33]} 41. Bf5+ {[%emt 0:00:31]} Kd5 {[%emt 0:01:15]} 1-0

[Event "29th Czech Open-Rapid 2018"]
[Site "Pardubice"]
[Date "2018.07.19"]
[Round "7"]
[White "Potapov, Alexander"]
[Black "Harsha, Bharathakoti"]
[Result "0-1"]
[ECO "D31"]
[WhiteElo "2407"]
[BlackElo "2163"]
[Annotator "NA"]
[PlyCount "120"]
[EventDate "2018.07.18"]
[EventType "swiss"]
[EventCountry "CZE"]
[SourceTitle "playchess.com"]
[Source "ChessBase"]
[SourceQuality "1"]
[TimeControl "900+10"]

1. d4 {[%emt 0:00:00]} e6 {[%emt 0:01:08]} 2. c4 {[%emt 0:00:22]} d5 {[%emt 0:00:30]} 3. Nc3 {[%emt 0:00:04]} a6 {[%emt 0:00:03]} 4. cxd5 {[%emt 0:00:34]} exd5 {[%emt 0:00:01]} 5. Nf3 {[%emt 0:00:04]} Nf6 {[%emt 0:00:03]} 6. Bg5 {[%emt 0:00:02]} Be6 {[%emt 0:00:02]} 7. e3 {[%emt 0:00:05]} Nbd7 {[%emt 0:00:30]} 8. Be2 {[%emt 0:00:23]} h6 {[%emt 0:00:26]} 9. Bh4 {[%emt 0:00:07]} Bd6 {[%emt 0:00:35]} 10. Rc1 {[%emt 0:00:22]} c6 {[%emt 0:00:20]} 11. a3 {[%emt 0:00:20]} O-O {[%emt 0:00:15]} 12. O-O {[%emt 0:00:07]} Bf5 {[%emt 0:00:31]} 13. Na4 {[%emt 0:02:22]} Be7 {[%emt 0:03:13]} 14. b4 {[%emt 0:01:17]} Ne4 {[%emt 0:00:02]} 15. Bg3 {[%emt 0:00:35]} Bd6 {[%emt 0:02:05]} 16. Nc5 {[%emt 0:00:21]} Bxg3 {[%emt 0:00:02]} 17. hxg3 {[%emt 0:00:01]} Nd6 {[%emt 0:00:00]} 18. Ne5 {[%emt 0:01:57]} Nb6 {[%emt 0:01:17]} 19. g4 {[%emt 0:01:07]} Bh7 {[%emt 0:00:02]} 20. a4 {[%emt 0:00:09]} Re8 {[%emt 0:00:15]} 21. a5 {[%emt 0:00:40]} Nbc8 {[%emt 0:00:02]} 22. Bd3 {[%emt 0:00:27]} Bxd3 {[%emt 0:00:06]} 23. Qxd3 {[%emt 0:00:02]} Qe7 {[%emt 0:00:44]} 24. Rfe1 {[%emt 0:00:26]} f6 {[%emt 0:00:24]} 25. Ng6 {[%emt 0:00:09]} Qf7 {[%emt 0:00:01]} 26. Nh4 {[%emt 0:00:47]} h5 {[%emt 0:01:19]} 27. gxh5 {[%emt 0:00:03]} Qxh5 {[%emt 0:00:02]} 28. g3 {[%emt 0:00:01]} g5 {[%emt 0:00:40]} 29. Nf5 {[%emt 0:01:14]} Qh7 {[%emt 0:03:51]} 30. g4 {[%emt 0:00:42]} Nxf5 {[%emt 0:00:04]} 31. Qxf5 {[%emt 0:00:05]} Qxf5 {[%emt 0:00:08]} 32. gxf5 {[%emt 0:00:02]} Nd6 {[%emt 0:00:01]} 33. f3 {[%emt 0:00:26]} Nxf5 {[%emt 0:00:26]} 34. Nxb7 {[%emt 0:00:01]} Rab8 {[%emt 0:01:03]} 35. Nc5 {[%emt 0:00:02]} Rxb4 {[%emt 0:00:01]} 36. Nxa6 {[%emt 0:00:11]} Ra4 {[%emt 0:00:01]} 37. Nc7 {[%emt 0:03:41]} Re7 {[%emt 0:00:04]} 38. Rxc6 {[%emt 0:00:01]} Nxd4 {[%emt 0:00:05]} 39. Rxf6 {[%emt 0:00:02]} Kg7 {[%emt 0:00:54]} 40. Nxd5 {[%emt 0:00:05]} Re5 {[%emt 0:00:00]} 41. Rb1 {[%emt 0:01:50]} Rxd5 {[%emt 0:00:01]} 42. Ra6 {[%emt 0:00:01]} Nxf3+ {[%emt 0:00:11]} 43. Kf2 {[%emt 0:00:03]} Ne5 {[%emt 0:00:17]} 44. Rb7+ {[%emt 0:00:12]} Nf7 {[%emt 0:00:02]} 45. Raa7 {[%emt 0:00:05]} Rf5+ {[%emt 0:00:08]} 46. Kg3 {[%emt 0:00:01]} Kg6 {[%emt 0:00:24]} 47. Rb6+ {[%emt 0:00:13]} Kh5 {[%emt 0:00:16]} 48. a6 {[%emt 0:00:02]} Rg4+ {[%emt 0:00:09]} 49. Kh2 {[%emt 0:00:09]} Rh4+ {[%emt 0:00:08]} 50. Kg3 {[%emt 0:00:01]} Rg4+ {[%emt 0:00:04]} 51. Kh2 {[%emt 0:00:00]} Rh4+ {[%emt 0:00:19]} 52. Kg3 {[%emt 0:00:01]} Rg4+ {[%emt 0:00:11]} 53. Kh2 {[%emt 0:00:01]} Rf2+ {[%emt 0:00:08]} 54. Kh1 {[%emt 0:00:00]} Kh4 {[%emt 0:00:15]} 55. Rc7 {[%emt 0:00:25]} Ne5 {[%emt 0:00:03]} 56. Rb1 {[%emt 0:00:30]} Kg3 {[%emt 0:00:07]} 57. Rg1+ {[%emt 0:00:11]} Kh3 {[%emt 0:00:08]} 58. Rh7+ {[%emt 0:00:17]} Rh4 {[%emt 0:00:01]} 59. Rxh4+ {[%emt 0:00:13]} gxh4 {[%emt 0:00:02]} 60. Ra1 {[%emt 0:00:25]} Nf3 {[%emt 0:00:01]} 0-1